[Event "*** Qualifier 1: Titled Tuesday 3|2 Blitz"]
[Site "Chess.com"]
[Date "2017.04.04"]
[Round "2"]
[White "Zhani-Z"]
[Black "chipmunknau"]
[Result "0-1"]
[WhiteElo "2377"]
[BlackElo "2420"]
[TimeControl "180+2"]
[EndTime "13:25:50 PDT"]
[Termination "chipmunknau won by resignation"]

1. e4 {[%clk 0:03:02]} 1... c6 {[%clk 0:02:52.3]} 2. d4 {[%clk 0:03:01]} 2... d5
{[%clk 0:02:53.1]} 3. e5 {[%clk 0:03:02.4]} 3... Bf5 {[%clk 0:02:53.7]} 4. Be3
{[%clk 0:03:03.6]} 4... e6 {[%clk 0:02:54.2]} 5. Nd2 {[%clk 0:03:05]} 5... Nd7
{[%clk 0:02:53.5]} 6. Ngf3 {[%clk 0:03:05.9]} 6... h6 {[%clk 0:02:53.9]} 7. Be2
{[%clk 0:02:59.4]} 7... Ne7 {[%clk 0:02:54.7]} 8. Nh4 {[%clk 0:02:53.5]} 8...
Bh7 {[%clk 0:02:54.9]} 9. f4 {[%clk 0:02:54.5]} 9... c5 {[%clk 0:02:50.9]} 10.
c3 {[%clk 0:02:54.1]} 10... cxd4 {[%clk 0:02:42.5]} 11. cxd4 {[%clk 0:02:54.1]}
11... Nc6 {[%clk 0:02:40]} 12. Bf2 {[%clk 0:01:46.8]} 12... Nxd4 {[%clk
0:02:34]} 13. Bxd4 {[%clk 0:01:40.8]} 13... Qxh4+ {[%clk 0:02:34.2]} 14. g3
{[%clk 0:01:42]} 14... Qd8 {[%clk 0:02:34.3]} 15. Nb3 {[%clk 0:01:33.4]} 15...
Bb4+ {[%clk 0:02:32.4]} 16. Kf2 {[%clk 0:01:34.1]} 16... O-O {[%clk 0:02:32.4]}
17. Bd3 {[%clk 0:01:32.3]} 17... Bxd3 {[%clk 0:02:27.8]} 18. Qxd3 {[%clk
0:01:33.5]} 18... f6 {[%clk 0:02:23.8]} 19. exf6 {[%clk 0:01:34.3]} 19... Nxf6
{[%clk 0:02:25.7]} 20. a3 {[%clk 0:01:26.5]} 20... Bd6 {[%clk 0:02:18.8]} 21.
Kg2 {[%clk 0:01:07.1]} 21... Rc8 {[%clk 0:02:06.1]} 22. Rhe1 {[%clk 0:01:01.5]}
22... Ne4 {[%clk 0:02:06.4]} 23. Nd2 {[%clk 0:00:57.9]} 23... Bc5 {[%clk
0:01:28.1]} 24. Bxc5 {[%clk 0:00:45.8]} 24... Nxc5 {[%clk 0:01:28.7]} 25. Qd4
{[%clk 0:00:43.1]} 25... Qb6 {[%clk 0:01:13.1]} 26. b4 {[%clk 0:00:33.5]} 26...
Na4 {[%clk 0:01:06.9]} 27. Qxb6 {[%clk 0:00:33.1]} 27... Nxb6 {[%clk 0:01:08.8]}
28. Rxe6 {[%clk 0:00:32]} 28... Rc2 {[%clk 0:01:09.5]} 29. Re2 {[%clk
0:00:32.7]} 29... Nc4 {[%clk 0:01:09.8]} 30. Rd1 {[%clk 0:00:28.9]} 30... Nxa3
{[%clk 0:00:52.5]} 31. Kf2 {[%clk 0:00:29.3]} 31... Nb5 {[%clk 0:00:51.6]} 32.
Nb1 {[%clk 0:00:23.6]} 32... Rxe2+ {[%clk 0:00:46.4]} 33. Kxe2 {[%clk
0:00:24.6]} 33... d4 {[%clk 0:00:48.3]} 34. Kd3 {[%clk 0:00:24.4]} 34... Re8
{[%clk 0:00:47]} 35. Nd2 {[%clk 0:00:23]} 35... Re3+ {[%clk 0:00:45.8]} 36. Kc4
{[%clk 0:00:24.1]} 36... a6 {[%clk 0:00:47]} 37. Kc5 {[%clk 0:00:20.5]} 37...
Rd3 {[%clk 0:00:45.3]} 38. Kc4 {[%clk 0:00:20]} 38... Rc3+ {[%clk 0:00:45.3]}
39. Kd5 {[%clk 0:00:21.1]} 39... Rc2 {[%clk 0:00:45]} 40. Ne4 {[%clk 0:00:20.8]}
40... Rxh2 {[%clk 0:00:41.1]} 41. Rd3 {[%clk 0:00:21]} 41... Rb2 {[%clk
0:00:38.3]} 42. Nc5 {[%clk 0:00:20.4]} 42... Rxb4 {[%clk 0:00:38.4]} 43. Ne6
{[%clk 0:00:20.6]} 43... a5 {[%clk 0:00:33.3]} 44. f5 {[%clk 0:00:20.7]} 44...
Rb1 {[%clk 0:00:29.4]} 45. Kc5 {[%clk 0:00:20.4]} 45... a4 {[%clk 0:00:28.4]}
46. Rd2 {[%clk 0:00:18]} 46... a3 {[%clk 0:00:27.5]} 47. Ra2 {[%clk 0:00:17.3]}
47... b6+ {[%clk 0:00:27.2]} 48. Kc6 {[%clk 0:00:17.6]} 48... d3 {[%clk
0:00:27]} 49. Rd2 {[%clk 0:00:17.8]} 49... Rb2 {[%clk 0:00:23.1]} 50. Rxd3
{[%clk 0:00:18.8]} 50... Kf7 {[%clk 0:00:19.7]} 51. Rd8 {[%clk 0:00:17.7]} 51...
Kf6 {[%clk 0:00:20.6]} 52. Rf8+ {[%clk 0:00:18]} 52... Ke5 {[%clk 0:00:21.8]}
53. Ra8 {[%clk 0:00:18.7]} 53... a2 {[%clk 0:00:22.6]} 54. Nxg7 {[%clk
0:00:17.9]} 54... Nd4+ {[%clk 0:00:20.7]} 55. Kd7 {[%clk 0:00:17.6]} 55... Nb3
{[%clk 0:00:20.2]} 56. Re8+ {[%clk 0:00:15.3]} 56... Kf6 {[%clk 0:00:20.7]} 57.
Nh5+ {[%clk 0:00:11.3]} 57... Kxf5 {[%clk 0:00:21.7]} 58. Rf8+ {[%clk
0:00:12.3]} 58... Kg5 {[%clk 0:00:22.3]} 0-1

[Event "*** Qualifier 1: Titled Tuesday 3|2 Blitz"]
[Site "Chess.com"]
[Date "2017.04.04"]
[Round "2"]
[White "wonderfultime"]
[Black "MaestroASK"]
[Result "1/2-1/2"]
[WhiteElo "2664"]
[BlackElo "2482"]
[TimeControl "180+2"]
[EndTime "13:25:55 PDT"]
[Termination "Game drawn by repetition"]

1. d4 {[%clk 0:03:01.9]} 1... d6 {[%clk 0:03:00.4]} 2. e4 {[%clk 0:02:59.8]}
2... g6 {[%clk 0:03:01.7]} 3. Nc3 {[%clk 0:03:01.3]} 3... c6 {[%clk 0:03:01.6]}
4. Be3 {[%clk 0:03:02.8]} 4... e5 {[%clk 0:03:01.8]} 5. Nf3 {[%clk 0:03:02.2]}
5... Bg7 {[%clk 0:03:02]} 6. Bc4 {[%clk 0:02:59.9]} 6... Qe7 {[%clk 0:03:01.7]}
7. h3 {[%clk 0:02:54.4]} 7... Nd7 {[%clk 0:03:01.3]} 8. O-O {[%clk 0:02:54.4]}
8... Ngf6 {[%clk 0:02:59.7]} 9. a4 {[%clk 0:02:54.4]} 9... a5 {[%clk 0:02:59.3]}
10. Re1 {[%clk 0:02:54.7]} 10... O-O {[%clk 0:02:58.9]} 11. Qd2 {[%clk
0:02:20.9]} 11... Ne8 {[%clk 0:02:56.3]} 12. Rad1 {[%clk 0:02:20.2]} 12... Kh8
{[%clk 0:02:50.7]} 13. Bg5 {[%clk 0:02:10.3]} 13... f6 {[%clk 0:02:48.5]} 14.
Bh6 {[%clk 0:02:11.7]} 14... Nc7 {[%clk 0:02:44.8]} 15. Ne2 {[%clk 0:01:52.9]}
15... Nb6 {[%clk 0:02:41.9]} 16. Bb3 {[%clk 0:01:53.8]} 16... Be6 {[%clk
0:02:29.9]} 17. Bxe6 {[%clk 0:01:54.3]} 17... Qxe6 {[%clk 0:02:29.1]} 18. b3
{[%clk 0:01:55.6]} 18... Qe7 {[%clk 0:02:25.5]} 19. Ng3 {[%clk 0:01:55.2]} 19...
Rfd8 {[%clk 0:02:21.7]} 20. h4 {[%clk 0:01:55]} 20... Bxh6 {[%clk 0:02:19.1]}
21. Qxh6 {[%clk 0:01:54.9]} 21... Qg7 {[%clk 0:02:18.9]} 22. Qe3 {[%clk
0:01:56.1]} 22... Nd7 {[%clk 0:02:12.3]} 23. Rd2 {[%clk 0:01:48.2]} 23... Nf8
{[%clk 0:02:10]} 24. Red1 {[%clk 0:01:48.8]} 24... Qe7 {[%clk 0:02:09.5]} 25. h5
{[%clk 0:01:28.4]} 25... Nce6 {[%clk 0:02:02.5]} 26. dxe5 {[%clk 0:01:26.5]}
26... dxe5 {[%clk 0:02:01.8]} 27. hxg6 {[%clk 0:01:23.3]} 27... hxg6 {[%clk
0:02:00.7]} 28. Qb6 {[%clk 0:01:14.9]} 28... Rxd2 {[%clk 0:01:57.3]} 29. Rxd2
{[%clk 0:01:16.8]} 29... Qb4 {[%clk 0:01:41.7]} 30. Qe3 {[%clk 0:01:13.3]} 30...
Kg7 {[%clk 0:01:40]} 31. Nh4 {[%clk 0:01:12.4]} 31... Nf4 {[%clk 0:01:32.3]} 32.
Nf1 {[%clk 0:01:05.7]} 32... Qe7 {[%clk 0:01:25.9]} 33. Ng3 {[%clk 0:01:02.8]}
33... Qb4 {[%clk 0:01:22.4]} 34. Nf1 {[%clk 0:01:03.8]} 34... Qe7 {[%clk
0:01:20.9]} 35. g3 {[%clk 0:01:05.2]} 35... N4e6 {[%clk 0:01:18.8]} 36. Nh2
{[%clk 0:01:06.6]} 36... Qc5 {[%clk 0:01:13.6]} 37. Qf3 {[%clk 0:01:05.9]} 37...
Rd8 {[%clk 0:01:10]} 38. Rxd8 {[%clk 0:01:01.4]} 38... Nxd8 {[%clk 0:01:10.1]}
39. Ng4 {[%clk 0:01:03.3]} 39... Qe7 {[%clk 0:01:08.2]} 40. Qe3 {[%clk
0:01:04.7]} 40... Nf7 {[%clk 0:01:05.9]} 41. Qf3 {[%clk 0:00:51.1]} 41... Ng5
{[%clk 0:00:58.7]} 42. Qe3 {[%clk 0:00:49.8]} 42... Nfe6 {[%clk 0:00:54.8]} 43.
Kg2 {[%clk 0:00:38.1]} 43... Qc5 {[%clk 0:00:51.1]} 44. Qd2 {[%clk 0:00:34.6]}
44... Qd4 {[%clk 0:00:44.8]} 45. Qxa5 {[%clk 0:00:27]} 45... Qxe4+ {[%clk
0:00:44.1]} 46. f3 {[%clk 0:00:28.6]} 46... Nxf3 {[%clk 0:00:31.6]} 47. Nxf3
{[%clk 0:00:29.3]} 47... Qxg4 {[%clk 0:00:31.6]} 48. Qd2 {[%clk 0:00:18.4]}
48... Nf4+ {[%clk 0:00:26.6]} 49. Kf2 {[%clk 0:00:18.9]} 49... Nh3+ {[%clk
0:00:19.7]} 50. Kg2 {[%clk 0:00:20.1]} 50... Ng5 {[%clk 0:00:19.7]} 51. Nxg5
{[%clk 0:00:20.5]} 51... fxg5 {[%clk 0:00:19.9]} 52. Qe3 {[%clk 0:00:17.2]}
52... e4 {[%clk 0:00:20.1]} 53. Qd4+ {[%clk 0:00:17]} 53... Kh7 {[%clk
0:00:19.3]} 54. Qe3 {[%clk 0:00:17.2]} 54... Qf5 {[%clk 0:00:19.3]} 55. b4
{[%clk 0:00:17.7]} 55... g4 {[%clk 0:00:19.4]} 56. c4 {[%clk 0:00:17.5]} 56...
Kg7 {[%clk 0:00:19.1]} 57. Qd4+ {[%clk 0:00:18.7]} 57... Kf7 {[%clk 0:00:19.2]}
58. b5 {[%clk 0:00:20]} 58... cxb5 {[%clk 0:00:18.3]} 59. cxb5 {[%clk
0:00:21.9]} 59... Qf3+ {[%clk 0:00:18.3]} 60. Kh2 {[%clk 0:00:23]} 60... Qe2+
{[%clk 0:00:18.3]} 61. Kg1 {[%clk 0:00:24]} 61... Qe1+ {[%clk 0:00:18]} 62. Kg2
{[%clk 0:00:24]} 62... Qe2+ {[%clk 0:00:18.2]} 63. Kg1 {[%clk 0:00:25.4]} 63...
Qe1+ {[%clk 0:00:18]} 64. Kg2 {[%clk 0:00:27]} 64... Qe2+ {[%clk 0:00:18.1]} 65.
Kg1 {[%clk 0:00:28.6]} 1/2-1/2

[Event "*** Qualifier 1: Titled Tuesday 3|2 Blitz"]
[Site "Chess.com"]
[Date "2017.04.04"]
[Round "2"]
[White "Yaacovn"]
[Black "nihalsarin"]
[Result "0-1"]
[WhiteElo "2598"]
[BlackElo "2542"]
[TimeControl "180+2"]
[EndTime "13:25:59 PDT"]
[Termination "nihalsarin won by resignation"]

1. d4 {[%clk 0:02:59.9]} 1... d5 {[%clk 0:02:59.2]} 2. Nf3 {[%clk 0:03:00.6]}
2... Nf6 {[%clk 0:02:59.9]} 3. Bf4 {[%clk 0:03:00.9]} 3... Bf5 {[%clk
0:02:56.4]} 4. e3 {[%clk 0:03:01.2]} 4... e6 {[%clk 0:02:57]} 5. c4 {[%clk
0:03:02]} 5... Nc6 {[%clk 0:02:54.9]} 6. Nc3 {[%clk 0:03:01.6]} 6... dxc4 {[%clk
0:02:53]} 7. Bxc4 {[%clk 0:03:01.7]} 7... Bd6 {[%clk 0:02:54.7]} 8. Bg5 {[%clk
0:03:01.4]} 8... Be7 {[%clk 0:02:51]} 9. Bb5 {[%clk 0:02:51.7]} 9... O-O {[%clk
0:02:48.2]} 10. O-O {[%clk 0:02:45.5]} 10... Nb4 {[%clk 0:02:38]} 11. Rc1 {[%clk
0:02:40.1]} 11... c6 {[%clk 0:02:35]} 12. Be2 {[%clk 0:02:40.3]} 12... Ne4
{[%clk 0:02:28.3]} 13. Bxe7 {[%clk 0:02:40.3]} 13... Qxe7 {[%clk 0:02:30.2]} 14.
Nxe4 {[%clk 0:02:38.7]} 14... Bxe4 {[%clk 0:02:29.9]} 15. a3 {[%clk 0:02:39.1]}
15... Nd5 {[%clk 0:02:30.9]} 16. Nd2 {[%clk 0:02:39.5]} 16... Bg6 {[%clk
0:02:31.5]} 17. Bf3 {[%clk 0:02:40.2]} 17... Rfd8 {[%clk 0:02:21.1]} 18. Nc4
{[%clk 0:02:39.5]} 18... f6 {[%clk 0:02:10.6]} 19. Qb3 {[%clk 0:02:39.7]} 19...
a5 {[%clk 0:01:57]} 20. h3 {[%clk 0:02:15.8]} 20... a4 {[%clk 0:01:55]} 21. Qd1
{[%clk 0:02:15.2]} 21... Ra6 {[%clk 0:01:42.6]} 22. Qe2 {[%clk 0:02:14.1]} 22...
Nb6 {[%clk 0:01:28.4]} 23. Nd2 {[%clk 0:02:12.1]} 23... Ra5 {[%clk 0:01:23.9]}
24. Ne4 {[%clk 0:02:12.2]} 24... e5 {[%clk 0:01:21.7]} 25. dxe5 {[%clk
0:02:02.1]} 25... Rxe5 {[%clk 0:01:12.6]} 26. Nd2 {[%clk 0:01:30.6]} 26... Bd3
{[%clk 0:01:11.2]} 27. Qe1 {[%clk 0:01:31.6]} 27... Bxf1 {[%clk 0:01:11.8]} 28.
Nxf1 {[%clk 0:01:32.6]} 28... Rb5 {[%clk 0:01:09.7]} 29. Qc3 {[%clk 0:01:32.6]}
29... Qe5 {[%clk 0:01:09.3]} 30. Qxe5 {[%clk 0:00:59.1]} 30... Rxe5 {[%clk
0:01:02.1]} 31. Rc2 {[%clk 0:00:58.6]} 31... Nd7 {[%clk 0:01:00.9]} 32. Rd2
{[%clk 0:00:56.6]} 32... Kf8 {[%clk 0:00:58.1]} 33. Ng3 {[%clk 0:00:56.2]} 33...
Ke7 {[%clk 0:00:55.3]} 34. Bg4 {[%clk 0:00:51]} 34... g6 {[%clk 0:00:52.7]} 35.
Nf1 {[%clk 0:00:42.3]} 35... Nc5 {[%clk 0:00:52.9]} 36. Rc2 {[%clk 0:00:43.4]}
36... Nd3 {[%clk 0:00:51]} 37. Be2 {[%clk 0:00:43.6]} 37... Rb5 {[%clk
0:00:39.7]} 38. Rc3 {[%clk 0:00:32.7]} 38... Rb3 {[%clk 0:00:37.3]} 39. Rc2
{[%clk 0:00:30.4]} 39... Nxb2 {[%clk 0:00:35.7]} 40. Nd2 {[%clk 0:00:31.2]}
40... Rb6 {[%clk 0:00:26.7]} 41. g4 {[%clk 0:00:26.1]} 41... Nd3 {[%clk
0:00:20.6]} 42. Nc4 {[%clk 0:00:24.9]} 42... Rb1+ {[%clk 0:00:20.7]} 43. Bf1
{[%clk 0:00:22.6]} 43... Rb3 {[%clk 0:00:20.8]} 44. Kh2 {[%clk 0:00:20.3]} 44...
Ne5 {[%clk 0:00:21.6]} 45. Na5 {[%clk 0:00:19.5]} 45... Rxa3 {[%clk 0:00:22.9]}
46. Nxb7 {[%clk 0:00:20.5]} 46... Rd1 {[%clk 0:00:24.2]} 47. Bg2 {[%clk
0:00:20.8]} 47... Rb1 {[%clk 0:00:23.8]} 48. Nc5 {[%clk 0:00:20.6]} 48... Raa1
{[%clk 0:00:24.5]} 49. f4 {[%clk 0:00:21.2]} 49... Nd7 {[%clk 0:00:24.8]} 50.
Nd3 {[%clk 0:00:21.9]} 50... a3 {[%clk 0:00:25.6]} 51. Rxc6 {[%clk 0:00:22.6]}
51... a2 {[%clk 0:00:26.2]} 52. Ra6 {[%clk 0:00:23.6]} 52... Rd1 {[%clk
0:00:26.2]} 53. Nb4 {[%clk 0:00:24.1]} 53... Rd2 {[%clk 0:00:27.5]} 54. Kg3
{[%clk 0:00:24.5]} 54... Rg1 {[%clk 0:00:28.2]} 55. Nc6+ {[%clk 0:00:21.7]}
55... Kf8 {[%clk 0:00:27.3]} 56. Ra8+ {[%clk 0:00:22]} 56... Kg7 {[%clk
0:00:28.6]} 57. Ra7 {[%clk 0:00:22.7]} 57... Rgxg2+ {[%clk 0:00:29.8]} 58. Kf3
{[%clk 0:00:23.3]} 58... f5 {[%clk 0:00:31.1]} 59. gxf5 {[%clk 0:00:23.5]} 59...
gxf5 {[%clk 0:00:33]} 60. e4 {[%clk 0:00:24]} 60... fxe4+ {[%clk 0:00:33.9]} 61.
Kxe4 {[%clk 0:00:24.7]} 61... Kf6 {[%clk 0:00:35.2]} 62. Kf3 {[%clk 0:00:24.3]}
62... Nc5 {[%clk 0:00:35.3]} 63. Ne5 {[%clk 0:00:24]} 63... Nb3 {[%clk
0:00:35.7]} 64. Ng4+ {[%clk 0:00:21.9]} 64... Rxg4 {[%clk 0:00:36.2]} 65. hxg4
{[%clk 0:00:22.7]} 65... a1=Q {[%clk 0:00:37.4]} 66. g5+ {[%clk 0:00:24]} 66...
Ke6 {[%clk 0:00:36.9]} 0-1

[Event "*** Qualifier 1: Titled Tuesday 3|2 Blitz"]
[Site "Chess.com"]
[Date "2017.04.04"]
[Round "2"]
[White "twitchTriniCupid"]
[Black "rst2003"]
[Result "0-1"]
[WhiteElo "2145"]
[BlackElo "2086"]
[TimeControl "180+2"]
[EndTime "13:26:01 PDT"]
[Termination "rst2003 won by resignation"]

1. d4 {[%clk 0:03:02]} 1... Nf6 {[%clk 0:02:59.8]} 2. c4 {[%clk 0:03:03]} 2...
g6 {[%clk 0:03:00.8]} 3. Nc3 {[%clk 0:02:58]} 3... Bg7 {[%clk 0:03:01.7]} 4. Nf3
{[%clk 0:02:56.3]} 4... O-O {[%clk 0:03:00.8]} 5. e3 {[%clk 0:02:57.4]} 5... d6
{[%clk 0:03:01.6]} 6. Be2 {[%clk 0:02:58.7]} 6... c5 {[%clk 0:03:01.6]} 7. O-O
{[%clk 0:02:59.7]} 7... Nc6 {[%clk 0:03:01.6]} 8. b3 {[%clk 0:03:00.6]} 8... Bd7
{[%clk 0:03:00.8]} 9. Bb2 {[%clk 0:02:57.4]} 9... a6 {[%clk 0:03:01.1]} 10. d5
{[%clk 0:02:56.5]} 10... Na5 {[%clk 0:03:00.2]} 11. Qc2 {[%clk 0:02:17]} 11...
Rb8 {[%clk 0:02:59]} 12. e4 {[%clk 0:02:15]} 12... b5 {[%clk 0:02:58.8]} 13.
cxb5 {[%clk 0:02:11.9]} 13... axb5 {[%clk 0:02:59.2]} 14. Rad1 {[%clk
0:01:57.8]} 14... Qb6 {[%clk 0:02:47.9]} 15. e5 {[%clk 0:01:44.3]} 15... dxe5
{[%clk 0:02:16.4]} 16. Nxe5 {[%clk 0:01:44.9]} 16... Bf5 {[%clk 0:02:13.8]} 17.
Qc1 {[%clk 0:01:34.1]} 17... Rfd8 {[%clk 0:01:58.7]} 18. Bxb5 {[%clk 0:01:22.5]}
18... Nh5 {[%clk 0:01:34.7]} 19. Nc4 {[%clk 0:01:03.9]} 19... Nxc4 {[%clk
0:01:32.5]} 20. Bxc4 {[%clk 0:01:04.6]} 20... Ra8 {[%clk 0:01:17.6]} 21. a3
{[%clk 0:00:52.4]} 21... Be5 {[%clk 0:01:06.4]} 22. Na4 {[%clk 0:00:43.4]} 22...
Bxb2 {[%clk 0:00:57.1]} 23. Nxb6 {[%clk 0:00:43.7]} 23... Bxc1 {[%clk
0:00:56.6]} 24. Nxa8 {[%clk 0:00:44.6]} 24... Bxa3 {[%clk 0:00:49.2]} 25. Nc7
{[%clk 0:00:38.7]} 25... Nf4 {[%clk 0:00:38.3]} 26. Na6 {[%clk 0:00:36.1]} 26...
Bc8 {[%clk 0:00:35]} 27. Rfe1 {[%clk 0:00:36.1]} 27... Kf8 {[%clk 0:00:34.8]}
28. g3 {[%clk 0:00:35.9]} 28... Nh3+ {[%clk 0:00:34.1]} 29. Kg2 {[%clk
0:00:37.2]} 29... Ng5 {[%clk 0:00:33.9]} 30. f3 {[%clk 0:00:36]} 30... f6 {[%clk
0:00:31.3]} 31. Nc7 {[%clk 0:00:35.9]} 31... Bb4 {[%clk 0:00:30.5]} 32. Re2
{[%clk 0:00:36.5]} 32... h5 {[%clk 0:00:29.1]} 33. h4 {[%clk 0:00:37.2]} 33...
Nf7 {[%clk 0:00:26.4]} 34. d6 {[%clk 0:00:23.6]} 34... Nxd6 {[%clk 0:00:27.1]}
35. Ne6+ {[%clk 0:00:18.1]} 35... Bxe6 {[%clk 0:00:27.5]} 36. Bxe6 {[%clk
0:00:19.3]} 36... Ra8 {[%clk 0:00:27]} 37. Bd5 {[%clk 0:00:16.8]} 37... Ra7
{[%clk 0:00:27.6]} 38. Rd3 {[%clk 0:00:17.2]} 38... Nb5 {[%clk 0:00:27.5]} 39.
g4 {[%clk 0:00:13.8]} 39... Nd4 {[%clk 0:00:24.8]} 40. Rxd4 {[%clk 0:00:10.9]}
40... cxd4 {[%clk 0:00:24.8]} 41. Bc4 {[%clk 0:00:10.9]} 41... Rd7 {[%clk
0:00:24.7]} 42. Bd3 {[%clk 0:00:12.1]} 42... hxg4 {[%clk 0:00:24.8]} 43. fxg4
{[%clk 0:00:13]} 43... Kg7 {[%clk 0:00:26.2]} 44. h5 {[%clk 0:00:13.8]} 44...
gxh5 {[%clk 0:00:27]} 45. gxh5 {[%clk 0:00:15.2]} 45... e5 {[%clk 0:00:28.6]}
46. Bg6 {[%clk 0:00:15.8]} 46... Kh6 {[%clk 0:00:28.5]} 47. Bd3 {[%clk
0:00:15.6]} 47... Kxh5 {[%clk 0:00:28.4]} 48. Kf3 {[%clk 0:00:17.1]} 48... Rd6
{[%clk 0:00:26.2]} 49. Ke4 {[%clk 0:00:17.9]} 49... Kg4 {[%clk 0:00:25.6]} 50.
Rg2+ {[%clk 0:00:18.2]} 50... Kh3 {[%clk 0:00:26.2]} 51. Rg8 {[%clk 0:00:19.1]}
51... Bd2 {[%clk 0:00:25.1]} 52. Rf8 {[%clk 0:00:19.5]} 52... Bg5 {[%clk
0:00:25.6]} 53. Kf5 {[%clk 0:00:20.7]} 53... Kg3 {[%clk 0:00:25.4]} 54. Rc8
{[%clk 0:00:20.2]} 54... Kf3 {[%clk 0:00:26.1]} 55. Be4+ {[%clk 0:00:21]} 55...
Ke3 {[%clk 0:00:27.2]} 56. b4 {[%clk 0:00:21.8]} 56... d3 {[%clk 0:00:28.5]} 57.
Rc1 {[%clk 0:00:22]} 57... d2 {[%clk 0:00:29.4]} 58. Rd1 {[%clk 0:00:22.1]}
58... Ke2 {[%clk 0:00:30.6]} 59. Bc2 {[%clk 0:00:22.8]} 59... Rc6 {[%clk
0:00:29.4]} 60. Ba4 {[%clk 0:00:22.7]} 60... Rc4 {[%clk 0:00:29.1]} 61. Bb5
{[%clk 0:00:22.6]} 61... Kxd1 {[%clk 0:00:29.5]} 62. Bxc4 {[%clk 0:00:23.9]}
62... Ke1 {[%clk 0:00:29.8]} 63. Bb3 {[%clk 0:00:24.4]} 63... d1=Q {[%clk
0:00:28.9]} 64. Bxd1 {[%clk 0:00:25.3]} 64... Kxd1 {[%clk 0:00:30]} 65. b5
{[%clk 0:00:26.3]} 65... Kd2 {[%clk 0:00:21.2]} 66. b6 {[%clk 0:00:26.4]} 66...
Be3 {[%clk 0:00:22.3]} 67. b7 {[%clk 0:00:27.1]} 67... Ba7 {[%clk 0:00:23]} 68.
Kxf6 {[%clk 0:00:28.4]} 68... e4 {[%clk 0:00:24.2]} 69. Ke6 {[%clk 0:00:29.7]}
69... e3 {[%clk 0:00:25.5]} 70. Kd7 {[%clk 0:00:31.6]} 0-1

[Event "*** Qualifier 1: Titled Tuesday 3|2 Blitz"]
[Site "Chess.com"]
[Date "2017.04.04"]
[Round "2"]
[White "Sethu0025"]
[Black "Buffy7"]
[Result "1-0"]
[WhiteElo "2618"]
[BlackElo "2518"]
[TimeControl "180+2"]
[EndTime "13:26:02 PDT"]
[Termination "Sethu0025 won by resignation"]

1. e4 {[%clk 0:02:59.5]} 1... c5 {[%clk 0:03:00.1]} 2. Nf3 {[%clk 0:03:00.5]}
2... Nc6 {[%clk 0:03:01.3]} 3. d4 {[%clk 0:03:00.6]} 3... cxd4 {[%clk
0:03:03.2]} 4. Nxd4 {[%clk 0:03:02.3]} 4... Nf6 {[%clk 0:03:04.8]} 5. Nc3 {[%clk
0:03:03.2]} 5... e5 {[%clk 0:03:06.4]} 6. Ndb5 {[%clk 0:03:04.2]} 6... d6 {[%clk
0:03:08]} 7. Bg5 {[%clk 0:03:03.6]} 7... a6 {[%clk 0:03:09.4]} 8. Na3 {[%clk
0:03:04.7]} 8... b5 {[%clk 0:03:10.5]} 9. Nd5 {[%clk 0:03:05.9]} 9... Be7 {[%clk
0:03:11.9]} 10. Bxf6 {[%clk 0:03:07]} 10... Bxf6 {[%clk 0:03:13.6]} 11. c4
{[%clk 0:03:08]} 11... b4 {[%clk 0:03:14.7]} 12. Nc2 {[%clk 0:03:09.2]} 12...
O-O {[%clk 0:03:16.3]} 13. Be2 {[%clk 0:03:08.3]} 13... Bg5 {[%clk 0:03:14.6]}
14. Ncxb4 {[%clk 0:03:00.3]} 14... Nxb4 {[%clk 0:03:03.7]} 15. Nxb4 {[%clk
0:03:01.2]} 15... Qb6 {[%clk 0:03:03]} 16. Nd3 {[%clk 0:02:47]} 16... f5 {[%clk
0:02:48.6]} 17. exf5 {[%clk 0:02:32.5]} 17... e4 {[%clk 0:02:34.1]} 18. Nc1
{[%clk 0:02:16.6]} 18... Qa5+ {[%clk 0:02:34.8]} 19. Kf1 {[%clk 0:02:15.6]}
19... Qxf5 {[%clk 0:02:06.1]} 20. Qd5+ {[%clk 0:02:16.1]} 20... Qxd5 {[%clk
0:02:03.2]} 21. cxd5 {[%clk 0:02:18]} 21... a5 {[%clk 0:01:46.8]} 22. Bc4 {[%clk
0:02:14.8]} 22... a4 {[%clk 0:01:45.7]} 23. Ke2 {[%clk 0:02:11.1]} 23... Bg4+
{[%clk 0:01:42.6]} 24. Ke1 {[%clk 0:02:06.1]} 24... Rab8 {[%clk 0:01:36.2]} 25.
b3 {[%clk 0:02:03.3]} 25... Bf6 {[%clk 0:01:36.1]} 26. Rb1 {[%clk 0:02:01.8]}
26... Rfc8 {[%clk 0:01:37.5]} 27. Be2 {[%clk 0:01:49.7]} 27... Bf5 {[%clk
0:01:33.6]} 28. g4 {[%clk 0:01:50.7]} 28... Bg6 {[%clk 0:01:32]} 29. h4 {[%clk
0:01:39.9]} 29... a3 {[%clk 0:01:11.8]} 30. h5 {[%clk 0:01:36.8]} 30... Bf7
{[%clk 0:01:12.3]} 31. Bd1 {[%clk 0:01:23.9]} 31... Bxd5 {[%clk 0:01:06]} 32.
Rh3 {[%clk 0:01:24.7]} 32... Bf7 {[%clk 0:00:50.4]} 33. Ne2 {[%clk 0:01:24.9]}
33... d5 {[%clk 0:00:51.1]} 34. f3 {[%clk 0:01:18.7]} 34... e3 {[%clk
0:00:47.7]} 35. Rc1 {[%clk 0:01:13.4]} 35... Rxc1 {[%clk 0:00:47.2]} 36. Nxc1
{[%clk 0:01:14.1]} 36... Rc8 {[%clk 0:00:48.7]} 37. Nd3 {[%clk 0:01:14.2]} 37...
d4 {[%clk 0:00:45.7]} 38. Rh2 {[%clk 0:01:14.4]} 38... Ra8 {[%clk 0:00:39.6]}
39. Bc2 {[%clk 0:00:57.9]} 39... h6 {[%clk 0:00:40.5]} 40. Bb1 {[%clk
0:00:57.4]} 40... Bd5 {[%clk 0:00:40]} 41. Rh3 {[%clk 0:00:47.5]} 41... Rc8
{[%clk 0:00:40.4]} 42. Ke2 {[%clk 0:00:46]} 42... Rc3 {[%clk 0:00:40.9]} 43. Rh1
{[%clk 0:00:45.6]} 43... Bb7 {[%clk 0:00:14.8]} 44. Rc1 {[%clk 0:00:44.5]} 44...
Rxc1 {[%clk 0:00:16]} 45. Nxc1 {[%clk 0:00:45.3]} 45... Kf7 {[%clk 0:00:17.7]}
46. Bd3 {[%clk 0:00:41.8]} 46... Ke7 {[%clk 0:00:19.1]} 47. Bc4 {[%clk
0:00:40.4]} 47... Kd6 {[%clk 0:00:20.6]} 48. Nd3 {[%clk 0:00:41.4]} 48... Bc6
{[%clk 0:00:21.9]} 49. Nf4 {[%clk 0:00:39.4]} 49... Be5 {[%clk 0:00:22.4]} 50.
Nd3 {[%clk 0:00:39.3]} 50... Bf6 {[%clk 0:00:23.6]} 51. Nb4 {[%clk 0:00:37.1]}
51... Bb7 {[%clk 0:00:22.7]} 52. Nd3 {[%clk 0:00:33.9]} 52... Bc6 {[%clk
0:00:23.4]} 53. b4 {[%clk 0:00:30.5]} 53... Ba4 {[%clk 0:00:23.4]} 54. b5 {[%clk
0:00:26.8]} 54... Bc2 {[%clk 0:00:20.9]} 55. Nb4 {[%clk 0:00:27.3]} 55... Bb1
{[%clk 0:00:21.9]} 56. Bd3 {[%clk 0:00:26.3]} 56... Bxd3+ {[%clk 0:00:18.2]} 57.
Nxd3 {[%clk 0:00:27.3]} 57... Kc7 {[%clk 0:00:19.9]} 58. Nb4 {[%clk 0:00:20.1]}
58... Be5 {[%clk 0:00:18.2]} 59. Nc2 {[%clk 0:00:20.6]} 59... Kb6 {[%clk
0:00:19.2]} 60. Nxa3 {[%clk 0:00:21.7]} 60... Bf6 {[%clk 0:00:20.1]} 61. Kd3
{[%clk 0:00:22.7]} 61... Ka5 {[%clk 0:00:21.6]} 62. f4 {[%clk 0:00:21.5]} 62...
Bh4 {[%clk 0:00:20.1]} 63. Nc2 {[%clk 0:00:21.8]} 63... Bf6 {[%clk 0:00:21]} 64.
g5 {[%clk 0:00:20.7]} 64... hxg5 {[%clk 0:00:22.9]} 65. fxg5 {[%clk 0:00:22.6]}
65... Bxg5 {[%clk 0:00:24.6]} 66. Nxd4 {[%clk 0:00:23.8]} 66... Bf6 {[%clk
0:00:25.3]} 67. Kxe3 {[%clk 0:00:24.8]} 67... Bg5+ {[%clk 0:00:26.6]} 68. Ke4
{[%clk 0:00:25.9]} 68... Bf6 {[%clk 0:00:27.9]} 1-0